[Event "MČR v bleskovém šachu družstev 2019"]
[Site "Teplice, Czech Republic"]
[Date "2019.09.14"]
[Round "6.9"]
[White "Krejci, Jan"]
[Black "Soural, Jan"]
[Result "1-0"]
[TimeControl "3 mim. + 2 s"]
[WhiteTitle "GM"]
[WhiteFideId "322156"]
[BlackFideId "311928"]
[WhiteElo "2527"]
[BlackElo "2107"]

1. d4 {[%clk 00:03:02]} {[%emt 00:00:01]} Nf6 {[%clk 00:03:03]} {[%emt
00:00:01]} 2. c4 {[%clk 00:03:04]} {[%emt 00:00:01]} g6 {[%clk 00:03:04]}
{[%emt 00:00:01]} 3. Nc3 {[%clk 00:03:05]} d5 {[%clk 00:03:05]} 4. cxd5 {[%clk
00:03:06]} {[%emt 00:00:01]} Nxd5 {[%clk 00:03:06]} {[%emt 00:00:01]} 5. Bd2
{[%clk 00:03:07]} Nb6 {[%clk 00:03:07]} {[%emt 00:00:01]} 6. Nf3 {[%clk
00:03:07]} {[%emt 00:00:01]} Bg7 {[%clk 00:03:07]} {[%emt 00:00:02]} 7. e3
{[%clk 00:03:07]} {[%emt 00:00:02]} O-O {[%clk 00:03:06]} {[%emt 00:00:03]} 8.
Be2 {[%clk 00:03:08]} Nc6 {[%clk 00:03:05]} {[%emt 00:00:03]} 9. O-O {[%clk
00:03:06]} {[%emt 00:00:05]} e5 {[%clk 00:03:06]} {[%emt 00:00:01]} 10. dxe5
{[%clk 00:03:06]} {[%emt 00:00:02]} Nxe5 {[%clk 00:03:07]} {[%emt 00:00:01]} 11.
Nxe5 {[%clk 00:03:07]} {[%emt 00:00:01]} Bxe5 {[%clk 00:03:08]} {[%emt
00:00:01]} 12. Qc2 {[%clk 00:03:01]} {[%emt 00:00:07]} c6 {[%clk 00:02:48]}
{[%emt 00:00:22]} 13. Rad1 {[%clk 00:03:02]} {[%emt 00:00:01]} Qe7 {[%clk
00:02:44]} {[%emt 00:00:06]} 14. a4 {[%clk 00:03:01]} {[%emt 00:00:04]} a5
{[%clk 00:02:23]} {[%emt 00:00:23]} 15. h3 {[%clk 00:03:00]} {[%emt 00:00:03]}
Be6 {[%clk 00:02:22]} {[%emt 00:00:02]} 16. b3 {[%clk 00:02:51]} {[%emt
00:00:11]} Rfd8 {[%clk 00:02:16]} {[%emt 00:00:09]} 17. e4 {[%clk 00:02:50]}
{[%emt 00:00:03]} Qf6 {[%clk 00:02:04]} {[%emt 00:00:14]} 18. f4 {[%clk
00:02:34]} {[%emt 00:00:18]} Rxd2 {[%clk 00:01:24]} {[%emt 00:00:42]} 19. Rxd2
{[%clk 00:02:35]} Bxc3 {[%clk 00:01:24]} {[%emt 00:00:02]} 20. e5 {[%clk
00:02:37]} Bxe5 {[%clk 00:01:25]} {[%emt 00:00:01]} 21. fxe5 {[%clk 00:02:38]}
Qxe5 {[%clk 00:01:26]} {[%emt 00:00:01]} 22. Kh1 {[%clk 00:02:31]} {[%emt
00:00:08]} Nd5 {[%clk 00:01:09]} {[%emt 00:00:19]} 23. Qc5 {[%clk 00:02:31]}
{[%emt 00:00:02]} Qg3 {[%clk 00:01:06]} {[%emt 00:00:05]} 24. Qf2 {[%clk
00:02:14]} {[%emt 00:00:19]} Qxb3 {[%clk 00:01:03]} {[%emt 00:00:06]} 25. Bg4
{[%clk 00:02:13]} {[%emt 00:00:03]} Nb4 {[%clk 00:00:48]} {[%emt 00:00:17]} 26.
Bxe6 {[%clk 00:01:56]} {[%emt 00:00:18]} Qxe6 {[%clk 00:00:49]} {[%emt
00:00:01]} 27. Re2 {[%clk 00:01:57]} {[%emt 00:00:01]} Qd7 {[%clk 00:00:43]}
{[%emt 00:00:08]} 28. Qf6 {[%clk 00:01:56]} {[%emt 00:00:03]} Nd5 {[%clk
00:00:40]} {[%emt 00:00:05]} 29. Qd4 {[%clk 00:01:51]} {[%emt 00:00:07]} Rd8
{[%clk 00:00:29]} {[%emt 00:00:13]} 30. Ref2 {[%clk 00:01:46]} {[%emt
00:00:07]} f5 {[%clk 00:00:28]} {[%emt 00:00:03]} 31. Re2 {[%clk 00:01:43]}
{[%emt 00:00:04]} Nb4 {[%clk 00:00:22]} {[%emt 00:00:08]} 32. Qh4 {[%clk
00:01:40]} {[%emt 00:00:05]} Qd4 {[%clk 00:00:20]} {[%emt 00:00:04]} 33. Re8+
{[%clk 00:01:36]} {[%emt 00:00:05]} Kg7 {[%clk 00:00:20]} {[%emt 00:00:03]} 34.
Re7+ {[%clk 00:01:37]} Kf8 {[%clk 00:00:20]} {[%emt 00:00:02]} 35. Qxh7 {[%clk
00:01:35]} {[%emt 00:00:04]} Qf6 {[%clk 00:00:18]} {[%emt 00:00:04]} 36. Rfe1
{[%clk 00:01:25]} {[%emt 00:00:12]} Nd5 {[%clk 00:00:18]} {[%emt 00:00:02]} 37.
R1e6 {[%clk 00:01:13]} {[%emt 00:00:13]} Qxe7 {[%clk 00:00:16]} {[%emt
00:00:05]} 38. Rxe7 {[%clk 00:01:14]} {[%emt 00:00:01]} Nxe7 {[%clk 00:00:17]}
39. Qh8+ {[%clk 00:01:10]} {[%emt 00:00:06]} Ng8 {[%clk 00:00:18]} {[%emt
00:00:01]} 40. Qe5 {[%clk 00:01:11]} {[%emt 00:00:01]} Re8 {[%clk 00:00:16]}
{[%emt 00:00:04]} 41. Qxa5 {[%clk 00:01:12]} {[%emt 00:00:01]} Re7 {[%clk
00:00:16]} {[%emt 00:00:02]} 42. Qd8+ {[%clk 00:01:12]} {[%emt 00:00:01]} Kf7
{[%clk 00:00:17]} {[%emt 00:00:01]} 43. a5 {[%clk 00:01:10]} {[%emt 00:00:04]}
Nf6 {[%clk 00:00:18]} {[%emt 00:00:01]} 44. Qd4 {[%clk 00:01:08]} {[%emt
00:00:04]} Ne4 {[%clk 00:00:18]} {[%emt 00:00:03]} 45. Kh2 {[%clk 00:01:08]}
{[%emt 00:00:02]} Re8 {[%clk 00:00:14]} {[%emt 00:00:06]} 46. g4 {[%clk
00:01:04]} {[%emt 00:00:06]} fxg4 {[%clk 00:00:13]} {[%emt 00:00:03]} 47. hxg4
{[%emt 00:00:01]} g5 48. Qc4+ {[%clk 00:01:00]} {[%emt 00:00:06]} Kf6 {[%clk
00:00:14]} {[%emt 00:00:03]} 49. Qf1+ {[%clk 00:00:59]} {[%emt 00:00:04]} Kg7
{[%clk 00:00:12]} {[%emt 00:00:04]} 50. Qf5 {[%emt 00:00:02]} Re7 51. Kg2
{[%clk 00:00:56]} {[%emt 00:00:04]} Kg8 {[%clk 00:00:13]} {[%emt 00:00:01]} 52.
Kf3 {[%clk 00:00:53]} {[%emt 00:00:05]} Kg7 {[%clk 00:00:15]} {[%emt 00:00:01]}
53. Qc8 {[%clk 00:00:51]} {[%emt 00:00:04]} Kg6 {[%clk 00:00:12]} {[%emt
00:00:04]} 54. Kg2 {[%clk 00:00:50]} {[%emt 00:00:03]} Kg7 {[%clk 00:00:13]}
{[%emt 00:00:01]} 55. Qd8 {[%clk 00:00:42]} {[%emt 00:00:09]} Kf7 {[%clk
00:00:12]} {[%emt 00:00:03]} 56. Qh8 {[%clk 00:00:43]} {[%emt 00:00:01]} Nf6
{[%clk 00:00:13]} {[%emt 00:00:01]} 57. Qh6 {[%clk 00:00:38]} {[%emt 00:00:07]}
Ne4 {[%clk 00:00:12]} {[%emt 00:00:03]} 58. Qh7+ {[%emt 00:00:01]} Ke8 59. Qg8+
{[%clk 00:00:38]} {[%emt 00:00:01]} Kd7 {[%clk 00:00:15]} {[%emt 00:00:01]} 60.
Qb8 {[%clk 00:00:34]} {[%emt 00:00:06]} Ke6 {[%clk 00:00:15]} {[%emt 00:00:02]}
61. Qf8 {[%clk 00:00:27]} {[%emt 00:00:08]} c5 {[%clk 00:00:14]} {[%emt
00:00:04]} 62. Qf5+ {[%emt 00:00:03]} Kd6 63. Qg6+ {[%clk 00:00:26]} {[%emt
00:00:02]} Re6 {[%clk 00:00:15]} {[%emt 00:00:03]} 64. Qf7 {[%clk 00:00:26]}
{[%emt 00:00:01]} Re7 {[%clk 00:00:16]} 65. Qg6+ {[%clk 00:00:27]} {[%emt
00:00:01]} Re6 {[%clk 00:00:18]} 66. Qg7 {[%clk 00:00:28]} Re7 {[%clk
00:00:16]} {[%emt 00:00:04]} 67. Qf8 {[%clk 00:00:29]} {[%emt 00:00:01]} c4
{[%clk 00:00:17]} {[%emt 00:00:02]} 68. Qd8+ {[%clk 00:00:29]} {[%emt
00:00:02]} Rd7 {[%clk 00:00:15]} {[%emt 00:00:04]} 69. Qb6+ {[%clk 00:00:29]}
{[%emt 00:00:01]} Ke5 {[%clk 00:00:13]} {[%emt 00:00:04]} 70. Qb5+ {[%clk
00:00:30]} {[%emt 00:00:01]} Ke6 {[%clk 00:00:10]} {[%emt 00:00:05]} 71. Qf5+
{[%clk 00:00:30]} {[%emt 00:00:02]} Kd6 {[%clk 00:00:09]} {[%emt 00:00:03]} 72.
Qxe4 {[%clk 00:00:32]} {[%emt 00:00:01]} Rc7 {[%clk 00:00:10]} 73. Qg6+ {[%clk
00:00:32]} {[%emt 00:00:02]} Kd5 {[%clk 00:00:10]} {[%emt 00:00:02]} 74. Qxg5+
{[%clk 00:00:33]} Kd4 {[%clk 00:00:12]} 75. Qf4+ {[%clk 00:00:34]} {[%emt
00:00:01]} 1-0

[Event "MČR v bleskovém šachu družstev 2019"]
[Site "Teplice, Czech Republic"]
[Date "2019.09.14"]
[Round "6.10"]
[White "Vokoun, Jan"]
[Black "Sorm, Daniel"]
[Result "1-0"]
[TimeControl "3 mim. + 2 s"]
[WhiteTitle "FM"]
[BlackTitle "FM"]
[WhiteFideId "301647"]
[BlackFideId "5400139"]
[WhiteElo "2123"]
[BlackElo "2310"]

1. e4 {[%clk 00:03:03]} c5 {[%clk 00:03:03]} {[%emt 00:00:01]} 2. Be2 {[%clk
00:03:01]} {[%emt 00:00:04]} Nc6 {[%clk 00:03:03]} {[%emt 00:00:01]} 3. f4
{[%clk 00:03:03]} e6 {[%clk 00:03:03]} {[%emt 00:00:03]} 4. Nf3 {[%clk
00:03:03]} {[%emt 00:00:01]} d5 {[%clk 00:03:02]} {[%emt 00:00:02]} 5. d3
{[%clk 00:03:04]} Nf6 {[%clk 00:03:03]} {[%emt 00:00:02]} 6. e5 {[%clk
00:03:02]} {[%emt 00:00:04]} Nd7 {[%clk 00:03:04]} 7. O-O {[%clk 00:02:58]}
{[%emt 00:00:06]} Be7 {[%clk 00:03:04]} {[%emt 00:00:02]} 8. c3 {[%clk
00:02:48]} {[%emt 00:00:12]} d4 {[%clk 00:03:03]} {[%emt 00:00:03]} 9. c4
{[%clk 00:02:32]} {[%emt 00:00:18]} O-O {[%clk 00:03:02]} {[%emt 00:00:03]} 10.
Nbd2 {[%clk 00:02:27]} {[%emt 00:00:07]} b6 {[%clk 00:03:00]} {[%emt 00:00:03]}
11. Ne4 {[%clk 00:02:26]} {[%emt 00:00:03]} Bb7 {[%clk 00:03:00]} {[%emt
00:00:02]} 12. a3 {[%clk 00:02:18]} {[%emt 00:00:10]} h6 {[%clk 00:02:59]}
{[%emt 00:00:04]} 13. Qe1 {[%clk 00:02:05]} {[%emt 00:00:15]} f5 {[%clk
00:02:57]} {[%emt 00:00:04]} 14. exf6 {[%clk 00:02:03]} {[%emt 00:00:04]} Nxf6
{[%clk 00:02:57]} {[%emt 00:00:02]} 15. Nxf6+ {[%clk 00:01:42]} {[%emt
00:00:23]} Bxf6 {[%clk 00:02:58]} {[%emt 00:00:01]} 16. Nd2 {[%clk 00:01:38]}
{[%emt 00:00:06]} Bh4 {[%clk 00:02:35]} {[%emt 00:00:25]} 17. g3 {[%clk
00:01:36]} {[%emt 00:00:05]} Be7 {[%clk 00:02:29]} {[%emt 00:00:07]} 18. Bf3
{[%clk 00:01:26]} {[%emt 00:00:12]} Qd7 {[%clk 00:02:21]} {[%emt 00:00:10]} 19.
Bg4 {[%clk 00:01:17]} {[%emt 00:00:12]} Bc8 {[%clk 00:02:14]} {[%emt 00:00:09]}
20. Qe4 {[%clk 00:00:59]} {[%emt 00:00:20]} Bf6 {[%clk 00:01:59]} {[%emt
00:00:17]} 21. Re1 {[%clk 00:00:51]} {[%emt 00:00:10]} Re8 {[%clk 00:01:51]}
{[%emt 00:00:10]} 22. Bh5 {[%clk 00:00:37]} {[%emt 00:00:16]} Re7 {[%clk
00:01:49]} {[%emt 00:00:04]} 23. Bf3 {[%clk 00:00:37]} {[%emt 00:00:02]} Bb7
{[%clk 00:01:48]} {[%emt 00:00:02]} 24. Qg6 {[%clk 00:00:35]} {[%emt 00:00:05]}
Qe8 {[%clk 00:01:38]} {[%emt 00:00:11]} 25. Qxe8+ {[%clk 00:00:26]} {[%emt
00:00:11]} Raxe8 {[%clk 00:01:38]} {[%emt 00:00:03]} 26. Ne4 {[%clk 00:00:27]}
Na5 {[%clk 00:01:25]} {[%emt 00:00:15]} 27. b4 {[%clk 00:00:21]} {[%emt
00:00:08]} Nb3 {[%clk 00:01:25]} {[%emt 00:00:02]} 28. Rb1 {[%clk 00:00:23]}
Nxc1 {[%clk 00:01:25]} {[%emt 00:00:02]} 29. Rexc1 {[%clk 00:00:23]} {[%emt
00:00:01]} cxb4 {[%clk 00:01:19]} {[%emt 00:00:08]} 30. axb4 {[%clk 00:00:24]}
Bxe4 {[%clk 00:01:13]} {[%emt 00:00:08]} 31. Bxe4 {[%clk 00:00:25]} Rc7 {[%clk
00:01:14]} 32. c5 {[%clk 00:00:22]} {[%emt 00:00:06]} e5 {[%clk 00:00:57]}
{[%emt 00:00:19]} 33. f5 {[%clk 00:00:22]} {[%emt 00:00:02]} Bg5 {[%clk
00:00:58]} {[%emt 00:00:02]} 34. Rc2 {[%clk 00:00:23]} {[%emt 00:00:01]} a5
{[%clk 00:00:46]} {[%emt 00:00:14]} 35. c6 {[%clk 00:00:23]} {[%emt 00:00:02]}
a4 {[%clk 00:00:44]} {[%emt 00:00:04]} 36. b5 {[%clk 00:00:22]} {[%emt
00:00:03]} Be7 {[%clk 00:00:41]} {[%emt 00:00:04]} 37. Kg2 {[%clk 00:00:23]}
{[%emt 00:00:01]} a3 {[%clk 00:00:41]} {[%emt 00:00:03]} 38. Ra2 {[%clk
00:00:23]} {[%emt 00:00:02]} Ra8 {[%clk 00:00:36]} {[%emt 00:00:06]} 39. Kf3
{[%clk 00:00:24]} {[%emt 00:00:02]} Kf7 {[%clk 00:00:36]} {[%emt 00:00:02]} 40.
h4 {[%clk 00:00:23]} {[%emt 00:00:02]} h5 {[%clk 00:00:36]} {[%emt 00:00:02]}
41. Rg1 {[%clk 00:00:23]} {[%emt 00:00:02]} Ra4 {[%clk 00:00:34]} {[%emt
00:00:04]} 42. Rb1 {[%clk 00:00:22]} {[%emt 00:00:03]} Rca7 {[%clk 00:00:30]}
{[%emt 00:00:07]} 43. Rb3 {[%clk 00:00:22]} {[%emt 00:00:03]} Ke8 {[%clk
00:00:28]} {[%emt 00:00:03]} 44. g4 {[%clk 00:00:20]} {[%emt 00:00:04]} hxg4+
{[%clk 00:00:29]} {[%emt 00:00:01]} 45. Kxg4 {[%clk 00:00:21]} Kd8 {[%clk
00:00:28]} {[%emt 00:00:03]} 46. Kh5 {[%clk 00:00:19]} {[%emt 00:00:04]} Bd6
{[%clk 00:00:24]} {[%emt 00:00:06]} 47. Kg6 {[%clk 00:00:19]} {[%emt 00:00:02]}
R4a5 {[%clk 00:00:22]} {[%emt 00:00:04]} 48. h5 {[%clk 00:00:19]} {[%emt
00:00:02]} Rc7 {[%clk 00:00:21]} {[%emt 00:00:03]} 49. f6 {[%clk 00:00:19]}
{[%emt 00:00:02]} gxf6 {[%emt 00:00:04]} 50. h6 Raa7 {[%clk 00:00:19]} {[%emt
00:00:03]} 51. Kxf6 {[%clk 00:00:18]} {[%emt 00:00:04]} Rf7+ {[%clk 00:00:17]}
{[%emt 00:00:04]} 52. Ke6 {[%clk 00:00:19]} {[%emt 00:00:01]} Bb8 {[%clk
00:00:13]} {[%emt 00:00:05]} 53. h7 {[%clk 00:00:19]} {[%emt 00:00:02]} Rae7+
{[%clk 00:00:13]} {[%emt 00:00:01]} 54. Kd5 {[%clk 00:00:19]} {[%emt 00:00:03]}
Rxh7 55. Bxh7 {[%clk 00:00:20]} Rxh7 {[%clk 00:00:14]} 56. Raxa3 {[%clk
00:00:20]} {[%emt 00:00:02]} Rh5 {[%clk 00:00:08]} {[%emt 00:00:08]} 57. Ra8
{[%clk 00:00:20]} {[%emt 00:00:02]} Kc8 {[%clk 00:00:10]} {[%emt 00:00:01]} 58.
Rba3 {[%clk 00:00:18]} {[%emt 00:00:04]} Rh1 {[%clk 00:00:06]} {[%emt
00:00:05]} 59. R3a7 {[%clk 00:00:18]} {[%emt 00:00:02]} Rc1 {[%clk 00:00:05]}
{[%emt 00:00:03]} 60. Rb7 {[%clk 00:00:17]} {[%emt 00:00:02]} Rc5+ {[%emt
00:00:03]} 61. Ke6 {[%clk 00:00:18]} 1-0

[Event "MČR v bleskovém šachu družstev 2019"]
[Site "Teplice, Czech Republic"]
[Date "2019.09.14"]
[Round "6.11"]
[White "Strasil, Pavel"]
[Black "Postupa, Martin"]
[Result "1-0"]
[TimeControl "3 mim. + 2 s"]
[WhiteFideId "308013"]
[BlackFideId "325210"]
[WhiteElo "2026"]
[BlackElo "1958"]

1. d4 {[%clk 00:03:01]} {[%emt 00:00:03]} d5 {[%clk 00:03:04]} 2. c4 {[%clk
00:03:02]} {[%emt 00:00:01]} e6 {[%clk 00:03:05]} 3. Nc3 {[%clk 00:03:02]}
{[%emt 00:00:02]} Nf6 {[%clk 00:03:06]} 4. Bg5 {[%clk 00:03:02]} {[%emt
00:00:02]} Be7 {[%clk 00:03:07]} {[%emt 00:00:01]} 5. cxd5 {[%clk 00:03:03]}
{[%emt 00:00:01]} exd5 {[%clk 00:03:09]} {[%emt 00:00:01]} 6. e3 {[%clk
00:03:03]} {[%emt 00:00:01]} O-O {[%clk 00:03:09]} {[%emt 00:00:02]} 7. Qc2
{[%clk 00:03:04]} {[%emt 00:00:01]} h6 {[%clk 00:03:09]} {[%emt 00:00:02]} 8.
Bxf6 {[%clk 00:03:01]} {[%emt 00:00:05]} Bxf6 {[%clk 00:03:10]} {[%emt
00:00:01]} 9. Bd3 {[%clk 00:03:01]} {[%emt 00:00:01]} b6 {[%clk 00:03:07]}
{[%emt 00:00:05]} 10. Nge2 {[%clk 00:02:59]} {[%emt 00:00:04]} c5 {[%clk
00:03:08]} {[%emt 00:00:01]} 11. O-O {[%clk 00:02:57]} {[%emt 00:00:04]} Bb7
{[%clk 00:02:56]} {[%emt 00:00:14]} 12. Bf5 {[%clk 00:02:35]} {[%emt 00:00:24]}
Nc6 {[%clk 00:02:46]} {[%emt 00:00:13]} 13. Rad1 {[%clk 00:02:34]} {[%emt
00:00:03]} c4 {[%clk 00:02:39]} {[%emt 00:00:09]} 14. Bg4 {[%clk 00:02:22]}
{[%emt 00:00:14]} Re8 {[%clk 00:02:30]} {[%emt 00:00:11]} 15. Bf3 {[%clk
00:02:21]} {[%emt 00:00:02]} Nb4 {[%clk 00:02:22]} {[%emt 00:00:10]} 16. Qb1
{[%clk 00:02:17]} {[%emt 00:00:07]} a5 {[%clk 00:02:17]} {[%emt 00:00:08]} 17.
a3 {[%clk 00:02:18]} {[%emt 00:00:02]} Na6 {[%clk 00:02:17]} 18. Qf5 {[%clk
00:02:08]} {[%emt 00:00:12]} Nc7 {[%clk 00:02:12]} {[%emt 00:00:07]} 19. e4
{[%clk 00:02:00]} {[%emt 00:00:10]} g6 {[%clk 00:01:46]} {[%emt 00:00:29]} 20.
Qf4 {[%clk 00:01:52]} {[%emt 00:00:09]} Bg5 {[%clk 00:01:32]} {[%emt 00:00:15]}
21. Qg3 {[%clk 00:01:23]} {[%emt 00:00:32]} dxe4 {[%clk 00:01:28]} {[%emt
00:00:06]} 22. Bg4 {[%clk 00:01:19]} {[%emt 00:00:07]} Nd5 {[%clk 00:01:13]}
{[%emt 00:00:17]} 23. Nxd5 {[%clk 00:01:03]} {[%emt 00:00:19]} Qxd5 {[%clk
00:01:13]} {[%emt 00:00:01]} 24. Nc3 {[%clk 00:01:00]} {[%emt 00:00:05]} Qd8
{[%clk 00:01:02]} {[%emt 00:00:13]} 25. Rfe1 {[%clk 00:00:46]} {[%emt
00:00:16]} b5 {[%clk 00:00:35]} {[%emt 00:00:27]} 26. d5 {[%clk 00:00:40]}
{[%emt 00:00:09]} b4 {[%clk 00:00:36]} {[%emt 00:00:01]} 27. Nxe4 {[%clk
00:00:41]} {[%emt 00:00:01]} Bh4 {[%clk 00:00:33]} {[%emt 00:00:05]} 28. Qf4
{[%clk 00:00:28]} {[%emt 00:00:15]} f5 {[%clk 00:00:30]} {[%emt 00:00:05]} 29.
Nc5 {[%clk 00:00:22]} {[%emt 00:00:08]} Rxe1+ {[%clk 00:00:31]} {[%emt
00:00:01]} 30. Rxe1 {[%clk 00:00:24]} Qxd5 {[%clk 00:00:24]} {[%emt 00:00:10]}
31. Bf3 {[%clk 00:00:25]} Qxc5 {[%clk 00:00:25]} {[%emt 00:00:02]} 32. Bxb7
{[%clk 00:00:25]} {[%emt 00:00:02]} Rb8 {[%clk 00:00:26]} 33. Bf3 {[%clk
00:00:24]} {[%emt 00:00:03]} bxa3 {[%clk 00:00:25]} {[%emt 00:00:04]} 34. bxa3
{[%clk 00:00:25]} c3 {[%clk 00:00:26]} 35. Qxh4 {[%clk 00:00:22]} {[%emt
00:00:05]} c2 {[%clk 00:00:20]} {[%emt 00:00:07]} 36. Qxh6 {[%clk 00:00:23]}
{[%emt 00:00:01]} Rb6 {[%clk 00:00:21]} {[%emt 00:00:03]} 37. Bd5+ {[%clk
00:00:10]} {[%emt 00:00:14]} Qxd5 {[%clk 00:00:16]} {[%emt 00:00:07]} 38. Re8+
{[%clk 00:00:12]} Kf7 {[%clk 00:00:16]} {[%emt 00:00:02]} 39. Qf8# {[%clk
00:00:13]} 1-0

[Event "MČR v bleskovém šachu družstev 2019"]
[Site "Teplice, Czech Republic"]
[Date "2019.09.14"]
[Round "6.12"]
[White "Krouzel, Jaroslav"]
[Black "Krejci, Jan"]
[Result "1/2-1/2"]
[TimeControl "3 mim. + 2 s"]
[WhiteFideId "301566"]
[BlackFideId "316873"]
[WhiteElo "2086"]
[BlackElo "2048"]

1. d4 {[%clk 00:03:01]} {[%emt 00:00:03]} d5 {[%clk 00:03:03]} {[%emt
00:00:01]} 2. Nf3 {[%clk 00:03:02]} Nf6 {[%clk 00:03:05]} {[%emt 00:00:02]} 3.
Bf4 {[%clk 00:03:03]} {[%emt 00:00:01]} Bf5 {[%clk 00:03:05]} {[%emt 00:00:01]}
4. e3 {[%clk 00:03:04]} {[%emt 00:00:01]} e6 {[%clk 00:03:06]} {[%emt
00:00:01]} 5. c4 {[%clk 00:03:05]} {[%emt 00:00:01]} c6 {[%clk 00:03:07]}
{[%emt 00:00:01]} 6. Nc3 {[%clk 00:03:05]} Nbd7 {[%clk 00:03:08]} {[%emt
00:00:01]} 7. Bd3 {[%clk 00:03:06]} {[%emt 00:00:01]} Bxd3 {[%clk 00:03:03]}
{[%emt 00:00:08]} 8. Qxd3 {[%clk 00:03:06]} {[%emt 00:00:01]} Be7 {[%clk
00:03:04]} {[%emt 00:00:02]} 9. O-O {[%clk 00:03:06]} {[%emt 00:00:02]} O-O
{[%clk 00:03:04]} {[%emt 00:00:02]} 10. h3 {[%clk 00:03:00]} {[%emt 00:00:08]}
h6 {[%clk 00:03:04]} {[%emt 00:00:02]} 11. Rfd1 {[%clk 00:02:51]} {[%emt
00:00:11]} a6 {[%clk 00:03:02]} {[%emt 00:00:04]} 12. e4 {[%clk 00:02:51]}
{[%emt 00:00:02]} dxe4 {[%clk 00:03:00]} {[%emt 00:00:04]} 13. Nxe4 {[%clk
00:02:49]} {[%emt 00:00:03]} Nxe4 {[%clk 00:03:01]} {[%emt 00:00:02]} 14. Qxe4
{[%clk 00:02:50]} {[%emt 00:00:01]} Nf6 {[%clk 00:03:01]} {[%emt 00:00:02]} 15.
Qc2 {[%clk 00:02:43]} {[%emt 00:00:08]} Qa5 {[%clk 00:02:54]} {[%emt 00:00:09]}
16. Ne5 {[%clk 00:02:39]} {[%emt 00:00:06]} Rfd8 {[%clk 00:02:47]} {[%emt
00:00:08]} 17. a3 {[%clk 00:02:38]} {[%emt 00:00:05]} Nd7 {[%clk 00:02:32]}
{[%emt 00:00:17]} 18. b4 {[%clk 00:02:28]} {[%emt 00:00:11]} Qc7 {[%clk
00:02:18]} {[%emt 00:00:15]} 19. c5 {[%clk 00:01:58]} {[%emt 00:00:33]} Nxe5
{[%clk 00:02:13]} {[%emt 00:00:07]} 20. Bxe5 {[%clk 00:01:57]} {[%emt
00:00:03]} Qd7 {[%clk 00:02:14]} {[%emt 00:00:01]} 21. a4 {[%clk 00:01:50]}
{[%emt 00:00:08]} Qd5 {[%clk 00:02:08]} {[%emt 00:00:07]} 22. Qa2 {[%clk
00:01:44]} {[%emt 00:00:08]} Qxa2 {[%clk 00:02:05]} {[%emt 00:00:05]} 23. Rxa2
{[%clk 00:01:45]} {[%emt 00:00:01]} Rd5 {[%clk 00:02:00]} {[%emt 00:00:06]} 24.
Rad2 {[%clk 00:01:18]} {[%emt 00:00:30]} Rad8 {[%clk 00:01:58]} {[%emt
00:00:04]} 25. Bf4 {[%clk 00:01:18]} {[%emt 00:00:03]} Bf6 {[%clk 00:01:57]}
{[%emt 00:00:03]} 26. Be3 {[%clk 00:01:18]} {[%emt 00:00:01]} h5 {[%clk
00:01:46]} {[%emt 00:00:12]} 27. f4 {[%clk 00:01:17]} {[%emt 00:00:05]} g6
{[%clk 00:01:46]} {[%emt 00:00:02]} 28. Kf2 {[%clk 00:01:17]} {[%emt 00:00:02]}
Bg7 {[%clk 00:01:44]} {[%emt 00:00:04]} 29. Kf3 {[%clk 00:01:16]} {[%emt
00:00:03]} f5 {[%clk 00:01:40]} {[%emt 00:00:06]} 30. Rd3 {[%clk 00:01:06]}
{[%emt 00:00:12]} 1/2-1/2